bitfinex/quotes_SOLUSD_20250918
["timestamp","ask_amount","ask_price","bid_price","bid_amount"]
[1758189090789,0.06,246.87,246.86,40.68207872]
[1758189091208,0.06,246.87,246.86,40.02207872]
[1758189091515,0.77,246.87,246.86,14.02207872]
[1758189092512,0.73,246.87,246.86,14.02207872]
[1758189092805,0.06,246.87,246.86,18.07295776]
[1758189092995,0.06,246.87,246.86,18.79295776]
[1758189093194,0.06,246.87,246.86,18.07295776]
[1758189093408,0.06,246.87,246.86,18.79295776]
[1758189095109,0.06,246.87,246.86,18.07295776]
[1758189095403,0.06,246.87,246.86,14.02207872]
[1758189096189,0.06,246.87,246.86,18.07295776]
[1758189097502,0.06,246.87,246.86,18.79295776]
[1758189097702,0.16,246.89,246.86,18.79295776]
[1758189097703,0.16,246.89,246.88,13.59559401]
[1758189098003,0.16,246.89,246.88,14.02207872]
[1758189098207,0.16,246.89,246.88,40.74207872]
[1758189099097,0.16,246.89,246.88,44.79262959]
[1758189101391,31.93,246.89,246.88,13.59559401]
[1758189101585,31.93,246.89,246.84,4.05104747]
[1758189101792,0.67,246.88,246.85,13.59559401]
[1758189102000,0.67,246.88,246.87,13.59559401]
[1758189102401,0.67,246.88,246.87,13.87991715]
[1758189102618,0.67,246.88,246.87,13.73775558]
[1758189103019,0.67,246.88,246.87,0.28432314]
[1758189103724,2.94875342,246.88,246.78,13.59559401]
[1758189103893,0.67,246.87,246.78,13.59559401]
[1758189104093,2.94875342,246.86,246.78,13.59559401]
[1758189104396,0.67,246.85,246.8,13.59559401]
[1758189104717,0.67,246.85,246.81,0.28432314]
[1758189105098,4.05120725,246.84,246.79,0.14216157]
[1758189105299,0.67,246.83,246.79,0.14216157]
[1758189105499,31.16,246.82,246.79,0.14216157]
[1758189105698,31.83,246.82,246.81,0.28432314]
[1758189109119,35.88153553,246.82,246.81,0.28432314]
[1758189109419,31.83,246.82,246.81,0.28432314]
[1758189110320,31.16,246.82,246.81,0.28432314]
[1758189110817,31.16,246.82,246.81,14.59991715]
[1758189111121,0.67,246.87,246.83,0.28432314]
[1758189111423,31.14,246.86,246.85,0.28432314]
[1758189112617,31.81,246.86,246.85,0.28432314]
[1758189113922,4.05075394,246.87,246.84,0.28432314]
[1758189114124,31.14,246.86,246.84,0.28432314]
[1758189116328,31.14,246.86,246.84,0.31432314]
[1758189116820,0.06,246.87,246.86,13.59559401]
[1758189117019,31.2,246.87,246.86,13.87991715]
[1758189118019,31.2,246.87,246.86,0.28432314]
[1758189122425,31.2,246.87,246.86,0.96432314]
[1758189123430,31.2,246.87,246.86,0.28432314]
[1758189123624,31.87,246.87,246.86,0.28432314]
[1758189123813,0.73,246.87,246.86,0.28432314]
[1758189124019,31.83,246.87,246.86,0.28432314]
[1758189124624,31.16,246.87,246.86,0.28432314]
[1758189125022,33.2879956,246.87,246.84,0.03]
[1758189125226,0.67,246.86,246.84,0.03]
[1758189126727,4.72092406,246.86,246.84,0.03]
[1758189127434,0.67,246.85,246.84,0.03]
[1758189128118,4.72104314,246.85,246.84,0.03]
[1758189129741,6.17903874,246.85,246.84,0.03]
[1758189130625,4.72104314,246.85,246.84,0.03]
[1758189132644,6.17903874,246.85,246.84,0.03]
[1758189132942,31.1,246.85,246.84,0.03]
[1758189133239,32.5379956,246.85,246.84,0.03]
[1758189133539,35.13104314,246.85,246.84,0.03]
[1758189133920,37.25903874,246.85,246.84,0.03]
[1758189138731,36.58903874,246.85,246.84,0.03]
[1758189142925,37.25903874,246.85,246.84,0.03]
[1758189149740,36.58903874,246.85,246.84,0.03]
[1758189150249,37.25903874,246.85,246.84,0.03]
[1758189151032,36.58903874,246.85,246.84,0.03]
[1758189151951,35.13104314,246.85,246.84,0.03]
[1758189152134,36.58903874,246.85,246.84,0.03]
[1758189153346,5.50903874,246.85,246.84,0.03]
[1758189153546,36.58903874,246.85,246.84,0.03]
[1758189153743,35.13104314,246.85,246.84,0.03]
[1758189154053,36.58903874,246.85,246.84,0.03]
[1758189154948,5.50903874,246.85,246.84,0.03]
[1758189155146,4.05104314,246.85,246.84,0.69]
[1758189155352,35.13104314,246.85,246.84,0.69]
[1758189155747,4.05104314,246.85,246.84,0.69]
[1758189156054,35.13104314,246.85,246.84,0.69]
[1758189157438,36.58903874,246.85,246.84,0.03]
[1758189157636,37.25903874,246.85,246.84,0.03]
[1758189157839,36.58903874,246.85,246.84,0.03]
[1758189158943,36.58903874,246.85,246.84,0.69]
[1758189159251,36.58903874,246.85,246.84,0.03]
[1758189167675,35.13104314,246.85,246.84,0.69]
[1758189168047,35.11104314,246.85,246.84,0.69]
[1758189169469,31.06,246.85,246.84,14.28559401]
[1758189169843,4.05089923,246.86,246.85,13.59559401]
[1758189170154,35.11089923,246.86,246.85,14.25559401]
[1758189170756,36.56889483,246.86,246.84,0.03]
[1758189170968,1.4579956,246.85,246.84,0.03]
[1758189171566,36.56889483,246.86,246.84,0.03]
[1758189172364,5.50903874,246.85,246.84,0.03]
[1758189172542,5.50903874,246.85,246.84,13.62559401]
[1758189173670,5.50903874,246.85,246.84,0.03]
[1758189174050,0.06,246.87,246.85,13.59559401]
[1758189174381,0.06,246.87,246.86,14.25559401]
[1758189174873,31.12,246.87,246.86,14.25559401]
[1758189175066,0.06,246.87,246.86,14.25559401]
[1758189175251,31.12,246.87,246.86,14.25559401]
[1758189175959,0.06,246.87,246.86,14.25559401]
[1758189176158,31.12,246.87,246.86,14.25559401]
[1758189176554,0.06,246.87,246.86,14.25559401]
[1758189176754,31.12,246.87,246.86,14.25559401]
[1758189177574,0.06,246.87,246.86,14.25559401]
[1758189177777,31.12,246.87,246.86,14.25559401]
[1758189178781,35.17071495,246.87,246.86,14.25559401]
[1758189179580,35.17071495,246.87,246.86,13.59559401]
[1758189179875,36.62871055,246.87,246.86,13.59559401]
[1758189180172,47.44549792,246.87,246.84,0.03]
[1758189180378,5.50903874,246.85,246.84,0.03]
[1758189180559,36.56903874,246.85,246.84,0.03]
[1758189180749,37.25903874,246.85,246.84,0.03]
[1758189181777,4.05089344,246.86,246.84,0.03]
[1758189181979,31.06,246.85,246.84,14.30559401]
[1758189182853,0.06,246.87,246.86,0.14216157]
[1758189183057,0.06,246.9,246.89,13.59559401]
[1758189183257,0.06,246.92,246.91,39.59559401]
[1758189183484,0.06,246.92,246.91,40.02207872]
[1758189183653,0.06,246.92,246.91,40.68207872]
[1758189183856,0.06,246.92,246.91,44.73213744]
[1758189185378,0.06,246.92,246.91,18.73213744]
[1758189185674,31.44,246.92,246.91,14.68207872]
[1758189186055,31.44,246.92,246.91,18.73213744]
[1758189186261,0.06,246.92,246.91,18.73213744]
[1758189188569,1e-08,246.93,246.92,14.02207872]
[1758189188779,0.7,247.07,246.96,14.02207872]
[1758189189067,1.96,246.99,246.96,14.02207872]
[1758189189273,1.96,246.99,246.98,14.02207872]
[1758189189673,1.96,246.99,246.98,14.68207872]
[1758189189892,0.1,246.99,246.98,14.68207872]
[1758189190667,31.5,246.99,246.98,14.02207872]
[1758189192983,32.2,246.99,246.98,14.02207872]
[1758189193185,0.8,246.99,246.98,14.02207872]
[1758189193382,32.18,246.99,246.98,14.02207872]
[1758189193762,31.48,246.99,246.98,14.02207872]
[1758189195289,26.0,246.96,246.71,0.1]
[1758189195481,2.27963707,246.91,246.88,0.66]
[1758189195674,31.5,246.9,246.86,0.66]
[1758189195879,31.5,246.9,246.87,13.59559401]
[1758189196387,0.7,246.92,246.89,13.59559401]
[1758189196593,31.5,246.91,246.9,0.28432314]
[1758189197002,31.5,246.91,246.9,0.14216157]
[1758189197172,33.77963707,246.91,246.9,0.28432314]
[1758189198185,2.27963707,246.92,246.9,0.28432314]
[1758189198388,0.7,246.97,246.92,0.42648471]
[1758189198588,2.27963707,246.95,246.92,1.08648471]
[1758189198785,31.48,246.94,246.92,1.08648471]
[1758189199586,2.27963707,246.97,246.93,0.66]
[1758189199783,31.5,246.96,246.93,0.66]
[1758189199973,2.97963707,246.97,246.93,0.66]
[1758189200175,31.48,246.96,246.93,0.66]
[1758189200478,33.75963707,246.96,246.94,0.28432314]
[1758189201600,31.48,246.96,246.94,0.28432314]
[1758189201897,0.1,246.99,246.96,0.42648471]
[1758189202294,31.48,246.98,246.96,0.42648471]
[1758189202694,6.4283872,246.99,246.96,0.42648471]
[1758189202894,31.48,246.98,246.96,0.42648471]
[1758189203400,2.37963707,246.99,246.96,0.42648471]
[1758189203596,31.48,246.98,246.96,0.42648471]
[1758189204583,0.1,246.99,246.96,0.42648471]
[1758189204584,0.1,246.99,246.98,14.02207872]
[1758189204909,31.58,246.99,246.98,14.02207872]
[1758189208307,34.53963707,246.99,246.95,0.14216157]
[1758189208514,2.27963707,246.97,246.95,0.14216157]
[1758189209001,31.46,246.96,246.95,0.14216157]
[1758189211311,31.44,246.96,246.95,0.14216157]
[1758189211714,2.27963707,246.98,246.95,0.14216157]
[1758189211886,4.55927414,246.96,246.9,0.03]
[1758189212085,2.27963707,246.91,246.9,0.03]
[1758189212298,33.81963707,246.91,246.9,0.03]
[1758189212904,34.49963707,246.91,246.9,0.03]
[1758189213999,38.54969579,246.91,246.9,0.03]
[1758189214913,36.27005872,246.91,246.9,0.03]
[1758189215113,38.54969579,246.91,246.9,0.03]
[1758189220223,2.27963707,246.93,246.9,0.72]
[1758189220396,2.27963707,246.93,246.91,0.28432314]
[1758189220397,31.52,246.92,246.91,0.28432314]
[1758189221019,31.52,246.92,246.91,0.97432314]
[1758189221531,31.52,246.92,246.91,0.28432314]
[1758189222223,33.79963707,246.92,246.91,0.28432314]
[1758189222614,33.79963707,246.92,246.9,0.45648471]
[1758189223721,31.5,246.91,246.9,1.14648471]
[1758189224527,31.48,246.91,246.9,1.14648471]
[1758189225120,31.48,246.91,246.9,4.91238433]
[1758189225324,31.48,246.91,246.9,5.19670747]
[1758189225514,2.27963707,246.94,246.91,0.28432314]
[1758189225712,2.27963707,246.94,246.91,0.97432314]
[1758189225713,31.48,246.93,246.91,0.97432314]
[1758189226226,2.27963707,246.96,246.92,0.83216157]
[1758189226403,31.48,246.95,246.92,0.83216157]
[1758189226603,2.27963707,246.96,246.92,0.83216157]
[1758189226804,31.48,246.95,246.92,0.83216157]
[1758189228220,2.27963707,246.96,246.92,0.83216157]
[1758189228415,0.06,246.93,246.92,14.71207872]
[1758189228922,31.52,246.93,246.92,18.76197342]
[1758189229101,0.06,246.93,246.92,18.76197342]
[1758189232737,0.06,246.93,246.92,13.59559401]
[1758189232939,0.06,246.93,246.92,14.02207872]
[1758189233429,0.06,246.93,246.92,13.59559401]
[1758189233731,0.06,246.93,246.92,14.02207872]
[1758189234030,31.56,246.93,246.91,13.59559401]
[1758189234223,31.56,246.93,246.92,0.42648471]
[1758189234620,31.56,246.93,246.92,0.28432314]
[1758189235638,31.56,246.93,246.92,0.98432314]
[1758189235838,31.56,246.93,246.92,5.17637941]
[1758189236139,0.06,246.93,246.92,5.17637941]
[1758189238516,0.06,246.93,246.92,18.77197342]
[1758189241541,0.06,246.93,246.92,18.07197342]
[1758189241714,0.06,246.93,246.92,18.77197342]
[1758189243222,0.06,246.93,246.92,18.07197342]
[1758189243623,0.06,246.93,246.92,18.79197342]
[1758189247645,0.06,246.93,246.92,18.82197342]
[1758189247864,0.06,246.93,246.92,18.10197342]
[1758189249837,0.06,246.93,246.92,18.82197342]
[1758189255035,0.06,246.93,246.92,18.10197342]
[1758189255445,0.77,246.93,246.92,13.62559401]
[1758189255833,0.77,246.93,246.92,13.90991715]
[1758189256027,0.77,246.93,246.92,17.95981185]
[1758189256028,0.06,246.93,246.92,17.95981185]
[1758189256233,0.06,246.93,246.92,18.10197342]
[1758189256433,0.06,246.93,246.92,18.82197342]
[1758189257236,0.06,246.93,246.92,18.10197342]
[1758189259553,0.77,246.93,246.92,14.05207872]
[1758189259741,0.77,246.93,246.92,0.45648471]
[1758189259958,0.77,246.93,246.92,0.17216157]
[1758189260137,0.06,246.93,246.92,0.17216157]
[1758189261855,0.06,246.93,246.92,4.50637941]
[1758189262053,0.06,246.93,246.92,18.10197342]
[1758189263836,0.77,246.93,246.92,14.05207872]
[1758189267357,0.77,246.93,246.92,0.03]
[1758189267557,6.27661319,246.93,246.92,0.03]
[1758189267950,36.21973069,246.93,246.92,0.03]
[1758189268639,37.67661319,246.93,246.92,0.03]
[1758189269554,6.27661319,246.93,246.92,0.03]
[1758189269764,36.23973069,246.93,246.92,0.03]
[1758189273162,0.77,246.93,246.92,0.03]
[1758189273354,32.17,246.93,246.92,0.03]
[1758189274967,36.21973069,246.93,246.92,0.03]
[1758189276065,31.46,246.93,246.92,0.03]
[1758189276248,31.44,246.93,246.92,0.03]
[1758189277274,36.16973069,246.93,246.92,0.03]
[1758189278967,31.44,246.93,246.92,0.69]
[1758189279340,31.44,246.93,246.92,0.03]
[1758189281959,32.12,246.93,246.92,0.03]
[1758189282266,31.44,246.93,246.92,0.03]
[1758189282671,0.06,246.93,246.92,0.69]
[1758189282872,31.42,246.93,246.92,0.69]
[1758189283244,31.42,246.93,246.92,0.03]
[1758189284469,32.1,246.93,246.92,0.03]
[1758189285150,36.14973069,246.93,246.92,0.03]
[1758189287487,37.60661319,246.93,246.92,0.03]
[1758189290059,36.14973069,246.93,246.92,0.03]
[1758189292753,37.60661319,246.93,246.92,0.03]
[1758189298073,36.92661319,246.93,246.92,0.03]
[1758189298277,35.46973069,246.93,246.92,0.03]
[1758189299466,36.17973069,246.93,246.92,0.03]
[1758189300167,37.63661319,246.93,246.92,0.03]
[1758189300552,35.38973069,246.93,246.92,0.03]
[1758189300756,36.84661319,246.93,246.92,0.03]
[1758189301884,37.66754994,246.93,246.92,0.03]
[1758189303068,38.36754994,246.93,246.92,0.03]
[1758189308269,37.64754994,246.93,246.92,0.03]
[1758189308672,6.38754994,246.93,246.92,0.03]
[1758189308875,35.36973069,246.93,246.92,0.03]
[1758189311177,4.10973069,246.93,246.92,0.72]
[1758189311471,35.34973069,246.93,246.92,0.72]
[1758189311870,35.34973069,246.93,246.92,0.03]
[1758189312281,37.62754994,246.93,246.92,0.03]
[1758189314199,35.34973069,246.93,246.92,0.03]
[1758189316098,38.32754994,246.93,246.92,0.03]
[1758189317282,39.94878816,246.93,246.92,0.03]
[1758189328109,8.70878816,246.93,246.92,0.03]
[1758189328285,39.88878816,246.93,246.92,0.03]
[1758189330021,39.18878816,246.93,246.92,0.03]
[1758189330324,39.88878816,246.93,246.92,0.03]
[1758189331223,39.18878816,246.93,246.92,0.03]
[1758189331406,8.00878816,246.93,246.92,0.03]
[1758189331727,39.88878816,246.93,246.92,0.03]
[1758189332558,61.33088965,246.93,246.89,0.03]
[1758189332705,28.27781925,246.9,246.89,0.03]
[1758189333022,33.59781925,246.9,246.89,0.03]
[1758189333719,37.64804201,246.9,246.89,0.03]
[1758189334332,38.32804201,246.9,246.89,0.03]
[1758189334700,39.94954311,246.9,246.89,0.03]
[1758189337719,65.92954311,246.9,246.89,0.03]
[1758189343505,65.24954311,246.9,246.89,0.03]
[1758189344130,65.92954311,246.9,246.89,0.03]
[1758189347741,39.92954311,246.9,246.89,0.03]
[1758189350132,42.20736236,246.9,246.89,0.03]
[1758189350924,42.26736236,246.9,246.89,0.03]
[1758189352835,39.24954311,246.9,246.89,0.7]
[1758189354023,39.24954311,246.9,246.89,0.03]
[1758189354345,39.92954311,246.9,246.89,0.03]
[1758189354848,39.24954311,246.9,246.89,0.03]
[1758189355226,8.00954311,246.9,246.89,0.03]
[1758189355438,39.24954311,246.9,246.89,0.03]
[1758189355824,8.00954311,246.9,246.89,0.03]
[1758189356234,39.24954311,246.9,246.89,0.03]
[1758189361848,38.43055406,246.9,246.89,0.03]
[1758189363739,39.03515407,246.9,246.89,0.03]
[1758189365150,7.79515407,246.9,246.89,0.03]
[1758189365353,38.99515407,246.9,246.89,0.73]
[1758189368044,7.79515407,246.9,246.89,0.73]
[1758189368237,4.71482277,246.9,246.89,0.73]
[1758189368433,35.91482277,246.9,246.89,0.73]
[1758189368837,37.37365297,246.9,246.89,0.73]
[1758189377166,38.05365297,246.9,246.89,0.03]
[1758189377547,38.99508835,246.9,246.89,0.03]
[1758189377737,38.99508835,246.9,246.89,0.73]
[1758189378244,38.99508835,246.9,246.89,0.03]
[1758189386549,39.67508835,246.9,246.89,0.03]
[1758189387475,38.99508835,246.9,246.89,0.03]
[1758189392980,7.79508835,246.9,246.89,0.03]
[1758189393153,38.97508835,246.9,246.89,0.03]
[1758189393877,7.79508835,246.9,246.89,0.03]
[1758189394076,38.97508835,246.9,246.89,0.03]
[1758189397682,6.33625815,246.9,246.89,0.03]
[1758189397892,38.97508835,246.9,246.89,0.03]
[1758189398983,7.79508835,246.9,246.89,0.03]
[1758189399192,38.97508835,246.9,246.89,0.74]
[1758189399700,38.97508835,246.9,246.89,0.03]
[1758189402397,38.97508835,246.9,246.89,0.74]
[1758189406701,38.97508835,246.9,246.89,0.03]
[1758189410124,6.17365297,246.9,246.89,0.03]
[1758189410407,37.35365297,246.9,246.89,0.03]
[1758189412696,38.03365297,246.9,246.89,0.03]
[1758189413321,39.65508835,246.9,246.89,0.03]
[1758189417215,40.53048835,246.9,246.89,0.03]
[1758189418608,43.94378169,246.9,246.88,1e-08]
[1758189418808,26.0,246.86,246.81,0.03]
[1758189419018,32.6388302,246.85,246.81,0.03]
[1758189419311,34.96066003,246.85,246.81,0.03]
[1758189420017,39.01170317,246.85,246.81,0.03]
[1758189421117,39.61630318,246.85,246.81,0.03]
[1758189422004,8.43630318,246.85,246.81,0.03]
[1758189422317,39.61630318,246.85,246.81,0.03]
[1758189422709,39.61630318,246.85,246.81,0.75]
[1758189423914,40.43749694,246.85,246.81,0.03]
[1758189424821,38.15747298,246.85,246.81,0.03]
[1758189425144,40.43749694,246.85,246.81,0.03]
[1758189429936,43.85079028,246.85,246.81,0.03]
[1758189433629,26.0,246.82,246.81,0.03]
[1758189433831,59.46002396,246.82,246.81,0.03]
[1758189434128,60.06462397,246.82,246.81,0.03]
[1758189434343,65.73825241,246.82,246.81,0.03]
[1758189436741,63.45822845,246.82,246.81,0.03]
[1758189436943,65.73825241,246.82,246.81,0.75]
[1758189437923,65.73825241,246.82,246.81,0.03]
[1758189439354,34.55825241,246.82,246.81,0.03]
[1758189439665,65.73825241,246.82,246.81,0.75]
[1758189439833,32.27822845,246.82,246.81,0.75]
[1758189440034,65.73825241,246.82,246.81,0.75]
[1758189443955,34.55825241,246.82,246.81,0.75]
[1758189444254,65.73825241,246.82,246.81,0.75]
[1758189444835,34.55825241,246.82,246.81,0.75]
[1758189445036,65.73825241,246.82,246.81,0.75]
[1758189445455,34.55825241,246.82,246.81,0.75]
[1758189445757,65.73825241,246.82,246.81,0.75]
[1758189446136,34.55825241,246.82,246.81,0.75]
[1758189446338,65.73825241,246.82,246.81,0.75]
[1758189450143,34.55825241,246.82,246.81,0.75]
[1758189450338,65.71825241,246.82,246.81,0.75]
[1758189451958,8.55825241,246.82,246.81,0.75]
[1758189452144,6.27822845,246.82,246.81,0.75]
[1758189452349,4.65613554,246.82,246.81,0.75]
[1758189452678,35.81613554,246.82,246.81,0.75]
[1758189452855,38.0961595,246.82,246.81,0.75]
[1758189453038,6.9361595,246.82,246.81,0.75]
[1758189453235,35.81613554,246.82,246.81,0.75]
[1758189453556,38.0961595,246.82,246.81,0.75]
[1758189457657,35.81613554,246.82,246.81,0.75]
[1758189459370,35.21153553,246.82,246.81,0.75]
[1758189460647,37.49155949,246.82,246.81,0.75]
[1758189462274,6.33155949,246.82,246.81,0.75]
[1758189462464,37.49155949,246.82,246.81,0.75]
[1758189462767,35.21153553,246.82,246.81,0.75]
[1758189463368,4.05153553,246.82,246.81,0.75]
[1758189463550,35.21153553,246.82,246.81,0.75]
[1758189465879,4.05153553,246.82,246.81,0.75]
[1758189466080,35.21153553,246.82,246.81,0.75]
[1758189467080,31.16,246.82,246.81,0.75]
[1758189469387,4.05144918,246.83,246.81,0.75]
[1758189469567,4.05144918,246.83,246.81,0.03]
[1758189469882,4.05144918,246.83,246.82,0.7]
[1758189470086,35.21144918,246.83,246.82,0.7]
[1758189471086,35.21144918,246.83,246.81,0.03]
[1758189471490,4.05144918,246.83,246.81,0.03]
[1758189471693,35.21153553,246.82,246.81,0.73]
[1758189472187,4.05153553,246.82,246.81,0.73]
[1758189472375,35.19153553,246.82,246.81,0.73]
[1758189476895,35.19153553,246.82,246.81,0.03]
[1758189477098,35.19153553,246.82,246.81,0.73]
[1758189477474,35.19153553,246.82,246.81,0.03]
[1758189478384,35.19153553,246.82,246.81,0.73]
[1758189480070,5.73306354,246.84,246.81,0.73]
[1758189480273,4.11136522,246.84,246.82,0.7]
[1758189480589,4.11136522,246.84,246.83,0.7]
[1758189480590,0.06,246.84,246.83,0.7]
[1758189480896,31.2,246.84,246.83,0.7]
[1758189481782,0.06,246.84,246.83,0.84216157]
[1758189482088,31.2,246.84,246.83,18.7734501]
[1758189482292,31.2,246.84,246.83,20.39462262]
[1758189482680,0.06,246.84,246.83,20.39462262]
[1758189483587,31.2,246.84,246.83,20.39462262]
[1758189484077,0.06,246.84,246.83,20.39462262]
[1758189484582,31.2,246.84,246.83,20.39462262]
[1758189486406,0.06,246.84,246.83,20.39462262]
[1758189490304,0.06,246.84,246.83,20.42462262]
[1758189504424,0.06,246.84,246.83,101.62975975]
[1758189504598,0.06,246.84,246.83,101.22462262]
[1758189504922,1e-08,246.84,246.83,101.22462262]
[1758189505506,1e-08,246.84,246.83,132.34462262]
[1758189505696,0.06,246.87,246.86,39.59559401]
[1758189506032,0.06,246.87,246.86,40.02207872]
[1758189506206,0.06,246.87,246.86,40.71207872]
[1758189506405,0.06,246.87,246.86,42.33266011]
[1758189506930,0.06,246.87,246.86,46.38353915]
[1758189507819,0.06,246.87,246.86,127.18353915]
[1758189508315,1e-08,246.87,246.86,127.18353915]
[1758189509723,1e-08,246.89,246.88,13.59559401]
[1758189510023,1e-08,246.89,246.88,14.4271338]
[1758189510231,1e-08,246.89,246.88,19.16768467]
[1758189510727,1e-08,246.89,246.88,20.78800347]
[1758189513101,1e-08,246.89,246.88,101.58800347]
[1758189513307,1e-08,246.89,246.88,101.18294839]
[1758189514532,1e-08,246.89,246.88,113.59345697]
[1758189515034,1e-08,246.89,246.88,144.00345697]
[1758189515235,1e-08,246.89,246.88,112.90345697]
[1758189515423,1e-08,246.89,246.88,113.59345697]
[1758189526035,1e-08,246.89,246.88,113.62345697]
[1758189526235,1e-08,246.9,246.89,0.42648471]
[1758189526429,0.06,246.92,246.9,14.02207872]
[1758189526738,0.06,246.92,246.89,113.40152339]
[1758189526739,0.06,246.92,246.91,45.79207872]
[1758189526944,0.06,246.93,246.92,14.02207872]
[1758189527438,0.06,246.93,246.92,14.71207872]
[1758189527619,0.06,246.93,246.92,16.33220063]
[1758189527818,0.06,246.93,246.92,20.38209533]
[1758189528436,0.73,246.93,246.92,19.69209533]
[1758189533439,0.06,246.93,246.92,20.38209533]
[1758189534520,0.06,246.93,246.92,19.69209533]
[1758189535742,0.06,246.93,246.92,20.37209533]
[1758189536832,0.06,246.93,246.92,101.17209533]
[1758189544545,0.06,246.93,246.92,100.49209533]
[1758189544744,0.78,246.93,246.92,100.49209533]
[1758189544949,0.06,246.93,246.92,100.49209533]
[1758189545152,0.06,246.93,246.92,101.20209533]
[1758189546935,0.78,246.93,246.92,19.26561062]
[1758189547342,0.06,246.93,246.92,19.40777219]
[1758189547542,0.06,246.93,246.92,19.54993376]
[1758189547930,0.06,246.93,246.92,19.69209533]
[1758189548931,0.06,246.93,246.92,20.40209533]
[1758189549153,0.06,246.93,246.92,20.8070848]
[1758189550325,0.06,246.95,246.93,0.42648471]
[1758189550529,0.60460001,247.11,247.02,39.59559401]
[1758189550730,0.1,247.14,247.02,39.59559401]
[1758189550731,0.72,247.1,247.08,0.14216157]
[1758189550954,0.72,247.1,247.09,14.02207872]
[1758189551249,0.1,247.14,247.09,14.02207872]
[1758189551642,0.72,247.13,247.09,18.06809237]
[1758189551846,0.72,247.12,247.11,13.87991715]
[1758189552042,0.72,247.12,247.11,14.02207872]
[1758189552243,0.72,247.12,247.11,0.28432314]
[1758189555647,4.76674122,247.12,247.1,0.28432314]
[1758189555848,4.76674122,247.12,247.09,0.28432314]
[1758189558565,4.76674122,247.12,247.06,13.59559401]
[1758189558566,14.88328379,247.12,247.07,0.14216157]
[1758189558740,14.88328379,247.12,247.07,0.42648471]
[1758189560335,4.76674122,247.12,247.09,0.03]
[1758189560535,4.82674122,247.12,247.09,0.45648471]
[1758189560740,31.22,247.11,247.09,0.45648471]
[1758189561155,0.72,247.1,247.09,14.05207872]
[1758189564282,4.76694455,247.1,247.09,0.03]
[1758189566970,7.04233701,247.1,247.09,0.03]
[1758189569844,8.66239331,247.1,247.09,0.03]
[1758189578576,8.72239331,247.1,247.09,0.03]
[1758189580172,6.44700085,247.1,247.09,0.03]
[1758189580571,8.72239331,247.1,247.09,0.03]
[1758189587880,39.86239331,247.1,247.09,0.03]
[1758189592962,8.72239331,247.1,247.09,0.03]
[1758189593167,39.12239331,247.1,247.09,0.03]
[1758189594086,39.84239331,247.1,247.09,0.03]
[1758189594591,37.48233701,247.1,247.09,0.71]
[1758189594886,37.48233701,247.1,247.09,0.03]
[1758189595892,6.38233701,247.1,247.09,0.03]
[1758189596080,37.48233701,247.1,247.09,0.03]
[1758189597097,0.1,247.14,247.11,14.02207872]
[1758189597279,0.1,247.14,247.13,0.14216157]
[1758189597472,0.1,247.14,247.13,0.82216157]
[1758189597473,31.52,247.14,247.13,0.82216157]
[1758189597676,0.1,247.14,247.13,0.82216157]
[1758189597876,31.54,247.14,247.13,0.82216157]
[1758189599193,35.58628955,247.14,247.13,0.82216157]
[1758189599390,4.14628955,247.14,247.13,0.82216157]
[1758189600188,31.52,247.14,247.13,0.82216157]
[1758189600395,0.1,247.14,247.13,0.82216157]
[1758189600782,31.52,247.14,247.13,0.82216157]
[1758189601171,0.1,247.14,247.13,0.68]